fUST/lending_fUST_20250228
["ID","MTS","AMOUNT","RATE_DAILY","PERIOD"]
[354828420,1740724246999,-500.0,0.00054794,120]
[354828421,1740724247009,-500.0,0.00054794,120]
[354828422,1740724247019,-5611.67,0.00054794,120]
[354828423,1740724247029,-500.0,0.00054794,45]
[354828424,1740724247039,-500.0,0.00054794,120]
[354828425,1740724247048,-279.15218519,0.00054794,120]
[354828426,1740724343535,10903.97384069,0.00044396,2]
[354828427,1740724343561,8114.00523371,0.00044396,2]
[354828444,1740724425882,500.0,0.00027,30]
[354828448,1740724733586,500.0,0.00027,30]
[354828449,1740725041673,500.0,0.00027,30]
[354828450,1740725130090,-207.00598415,0.00033683,2]
[354828451,1740725130125,-173.20183466,0.00033683,2]
[354828453,1740725227093,-173.00749724,0.00033683,2]
[354828454,1740725229091,-154.96912296,0.00033683,2]
[354828455,1740725231150,-73.61943473,0.00033683,2]
[354828456,1740725231172,-500.0,0.00038,30]
[354828457,1740725231194,-1051.01517277,0.00043774,2]
[354828458,1740725231214,-399.9052997,0.00043962,2]
[354828459,1740725231235,-254.3199999,0.00044066,120]
[354828460,1740725231256,-550.0,0.00044395,5]
[354828461,1740725231279,-5882.0209256,0.00044396,2]
[354828462,1740725231301,-151.0,0.00045,120]
[354828463,1740725231324,-604.3433936,0.00045145,120]
[354828464,1740725231351,-238.6558333,0.00045246,2]
[354828465,1740725231373,-403.54675134,0.00046676,2]
[354828466,1740725232116,-346.83822,0.00046676,2]
[354828467,1740725245088,-197.32212659,0.00046676,2]
[354828468,1740725245117,-751.0,0.00047138,5]
[354828469,1740725245141,-182.95175279,0.00048515,2]
[354828470,1740725252085,-97.35380361,0.00048515,2]
[354828471,1740725252113,-376.0,0.00049,120]
[354828472,1740725252136,-6159.00896202,0.000491,120]
[354828473,1740725252158,-2000.0,0.00049315,120]
[354828474,1740725252181,-238.51504477,0.00049871,2]
[354828475,1740725252206,-155.0,0.000499,120]
[354828476,1740725252232,-272.15720082,0.000499,11]
[354828477,1740725252254,-280.39976801,0.0005,2]
[354828478,1740725349129,-206.139171,0.00032877,2]
[354828479,1740725351655,500.0,0.00027,30]
[354828480,1740725355125,-724.31315611,0.0005,2]
[354828481,1740725355146,-151.0,0.0005,44]
[354828482,1740725355166,-9372.22175643,0.0005,60]
[354828483,1740725355190,-376.0,0.00051,120]
[354828484,1740725355210,-151.0,0.00051,44]
[354828485,1740725355231,-151.0,0.00052,44]
[354828486,1740725355254,-155.0,0.000528,120]
[354828487,1740725355276,-376.0,0.00053,120]
[354828488,1740725355297,-151.0,0.00053,44]
[354828489,1740725355317,-9.56818515,0.00053973,10]
[354828490,1740725358090,-163.0,0.00053973,2]
[354828491,1740725358111,-4990.43181485,0.00053973,10]
[354828492,1740725358136,-500.0,0.00053999,2]
[354828493,1740725358157,-214.81997123,0.00053999,31]
[354828494,1740725358185,-500.0,0.00053999,120]
[354828495,1740725358207,-310.9606534,0.00053999,120]
[354828496,1740725358230,-500.0,0.00053999,120]
[354828497,1740725358254,-500.0,0.00053999,120]
[354828498,1740725358278,-500.0,0.00053999,120]
[354828499,1740725358300,-500.0,0.00053999,120]
[354828500,1740725358322,-27.63238067,0.00053999,120]
[354828501,1740725373092,-643.84183545,0.000509,120]
[354828502,1740725373119,-472.36761933,0.00053999,120]
[354828503,1740725373143,-500.0,0.00053999,120]
[354828504,1740725373164,-500.0,0.00053999,120]
[354828505,1740725373190,-500.0,0.00053999,120]
[354828506,1740725373214,-500.0,0.00053999,120]
[354828507,1740725373239,-500.0,0.00053999,120]
[354828508,1740725373265,-544.47015905,0.00053999,2]
[354828509,1740725373289,-500.0,0.00053999,120]
[354828510,1740725373312,-500.0,0.00053999,120]
[354828511,1740725373336,-500.0,0.00053999,120]
[354828512,1740725373360,-500.0,0.00053999,120]
[354828513,1740725373383,-500.0,0.00053999,120]
[354828514,1740725373407,-500.0,0.00053999,120]
[354828515,1740725373430,-180.04085639,0.00053999,120]
[354828516,1740725373458,-500.0,0.00053999,120]
[354828517,1740725373484,-500.0,0.00053999,120]
[354828518,1740725373509,-500.0,0.00053999,120]
[354828519,1740725373532,-431.24631325,0.00053999,120]
[354828520,1740725403146,250.16273137,0.000491,120]
[354828550,1740725434931,3357.3904335,0.00044805,2]
[354828552,1740725437872,-888.35295862,0.000539,120]
[354828553,1740725437884,-1111.64604138,0.000539,120]
[354828554,1740725437893,-1242.82038363,0.00053955,28]
[354828555,1740725437903,-533.82889159,0.00054,120]
[354828613,1740725438756,-466.17110841,0.00054,120]
[354828615,1740725438765,-6585.56889892,0.00054,120]
[354828617,1740725438775,-151.0,0.00054,44]
[354828619,1740725438785,-10000.0,0.00054,10]
[354828621,1740725438795,-186.67120626,0.00054026,120]
[354828623,1740725438804,-500.0,0.00054026,120]
[354828625,1740725438814,-500.0,0.00054026,120]
[354828627,1740725438823,-500.0,0.00054026,120]
[354828630,1740725438833,-500.0,0.00054026,120]
[354828632,1740725438842,-500.0,0.00054026,120]
[354828634,1740725438852,-500.0,0.00054026,120]
[354828636,1740725438861,-451.4581694,0.00054026,120]
[354828638,1740725438871,-500.0,0.00054026,120]
[354828640,1740725438880,-500.0,0.00054026,120]
[354828642,1740725438890,-500.0,0.00054026,120]
[354828643,1740725438899,-390.67473797,0.00054026,120]
[354828645,1740725438909,-500.0,0.00054026,120]
[354828646,1740725438918,-500.0,0.00054026,120]
[354828647,1740725438927,-500.0,0.00054026,120]
[354828648,1740725438937,-500.0,0.00054026,120]
[354828649,1740725438946,-500.0,0.00054026,120]
[354828650,1740725438956,-500.0,0.00054026,120]
[354828651,1740725438965,-500.0,0.00054026,120]
[354828652,1740725438975,-500.0,0.00054026,120]
[354828653,1740725438985,-467.36950557,0.00054026,120]
[354828654,1740725438997,-14088.80156058,0.00054027,10]
[354828657,1740725439227,-345.53344021,0.00054027,10]
[354828658,1740725439241,-565.66499921,0.00054027,10]
[354828659,1740725439251,-3876.55178791,0.00054055,10]
[354828660,1740725439260,-1838.20165048,0.000545,120]
[354828661,1740725439272,-3161.79834952,0.000545,120]
[354828662,1740725439281,-150.0,0.00054507,120]
[354828663,1740725439291,-294.0,0.00054507,120]
[354828664,1740725439300,-589.0,0.00054507,120]
[354828665,1740725439309,-743.0,0.00054507,120]
[354828666,1740725439318,-878.69419648,0.00054507,120]
[354828667,1740725439331,-266.30580352,0.00054507,120]
[354828668,1740725439340,-1177.0,0.00054507,120]
[354828669,1740725439349,-1818.0,0.00054507,120]
[354828670,1740725439358,-6000.0,0.00054594,120]
[354828671,1740725439367,-157.18455876,0.00054594,2]
[354828672,1740725439377,-5152.81,0.000546,120]
[354828673,1740725439386,-1000.0,0.000546,120]
[354828674,1740725439395,-157.18455873,0.00054627,2]
[354828675,1740725439405,-157.18455873,0.00054661,2]
[354828676,1740725439414,-151.0,0.00054661,2]
[354828677,1740725439424,-1000.0,0.00054693,120]
[354828678,1740725439433,-2984.05,0.00054693,120]
[354828679,1740725439443,-32968.26232044,0.00054694,35]
[354828680,1740725439452,-40768.04937225,0.00054694,35]
[354828681,1740725439461,-222000.0,0.00054694,2]
[354828682,1740725439471,-157.18455873,0.00054694,2]
[354828683,1740725439484,-1000.0,0.00054721,120]
[354828684,1740725439495,-1000.0,0.00054748,120]
[354828685,1740725439504,-500.0,0.00054773,10]
[354828686,1740725439515,-505.78819921,0.00054773,10]
[354828687,1740725439526,-500.0,0.00054773,10]
[354828688,1740725439535,-500.0,0.00054773,2]
[354828689,1740725439545,-500.0,0.00054773,10]
[354828690,1740725439555,-500.0,0.00054773,10]
[354828691,1740725439565,-500.0,0.00054773,10]
[354828692,1740725439575,-500.0,0.00054773,10]
[354828693,1740725439584,-500.0,0.00054773,10]
[354828694,1740725439597,-209.05149195,0.00054773,10]
[354828695,1740725439611,-427.21661372,0.00054775,120]
[354828696,1740725439621,-500.0,0.00054793,30]
[354828697,1740725439631,-200.33405721,0.00054793,31]
[354828698,1740725439640,-500.0,0.00054794,30]
[354828699,1740725439650,-500.0,0.00054794,120]
[354828700,1740725439659,-503.82967992,0.00054794,120]
[354828701,1740725439669,-539.65979783,0.00054794,120]
[354828702,1740725439678,-500.0,0.00054794,120]
[354828703,1740725439688,-500.0,0.00054794,120]
[354828704,1740725439698,-500.0,0.00054794,120]
[354828705,1740725439708,-500.0,0.00054794,120]
[354828706,1740725439718,-500.0,0.00054794,120]
[354828707,1740725439727,-500.0,0.00054794,120]
[354828708,1740725439738,-500.0,0.00054794,120]
[354828709,1740725439747,-500.0,0.00054794,120]
[354828710,1740725439756,-500.0,0.00054794,120]
[354828711,1740725439765,-500.0,0.00054794,120]
[354828712,1740725439775,-500.0,0.00054794,120]
[354828713,1740725439784,-500.0,0.00054794,120]
[354828714,1740725439793,-500.0,0.00054794,120]
[354828715,1740725439803,-500.0,0.00054794,120]
[354828716,1740725439813,-500.0,0.00054794,120]
[354828717,1740725439823,-502.71597334,0.00054794,120]
[354828718,1740725439832,-500.0,0.00054794,120]
[354828719,1740725439842,-500.0,0.00054794,120]
[354828720,1740725439851,-500.0,0.00054794,120]
[354828721,1740725439860,-500.0,0.00054794,120]
[354828722,1740725439870,-500.0,0.00054794,120]
[354828723,1740725439879,-500.0,0.00054794,120]
[354828724,1740725439889,-503.78959497,0.00054794,120]
[354828725,1740725439898,-500.0,0.00054794,120]
[354828726,1740725439908,-151.0,0.00054794,120]
[354828727,1740725439918,-500.0,0.00054794,120]
[354828728,1740725439927,-565.68553695,0.00054794,120]
[354828729,1740725439937,-151.221897,0.00054794,120]
[354828730,1740725439946,-151.0,0.00054794,120]
[354828731,1740725439956,-500.0,0.00054794,120]
[354828732,1740725439966,-500.0,0.00054794,120]
[354828733,1740725439977,-419.36435772,0.00054794,120]
[354828734,1740725439989,-500.0,0.00054794,120]
[354828735,1740725440008,-500.0,0.00054794,120]
[354828736,1740725440019,-500.0,0.00054794,120]
[354828737,1740725440030,-500.0,0.00054794,120]
[354828738,1740725440040,-500.0,0.00054794,120]
[354828739,1740725440050,-500.0,0.00054794,120]
[354828740,1740725440061,-500.0,0.00054794,120]
[354828741,1740725440071,-500.0,0.00054794,120]
[354828742,1740725440080,-500.0,0.00054794,120]
[354828743,1740725440090,-500.0,0.00054794,120]
[354828744,1740725440100,-500.0,0.00054794,120]
[354828745,1740725440110,-500.0,0.00054794,120]
[354828746,1740725440121,-500.0,0.00054794,120]
[354828747,1740725440130,-500.0,0.00054794,120]
[354828748,1740725440140,-500.0,0.00054794,120]
[354828749,1740725440151,-260.77,0.00054794,120]
[354828750,1740725440161,-313.426997,0.00054794,120]
[354828751,1740725440171,-500.0,0.00054794,120]
[354828752,1740725440181,-500.0,0.00054794,120]
[354828753,1740725440191,-507.96977579,0.00054794,120]
[354828754,1740725440201,-500.0,0.00054794,120]
[354828755,1740725440212,-506.15338275,0.00054794,120]
[354828756,1740725440223,-503.56878229,0.00054794,120]
[354828757,1740725440233,-500.0,0.00054794,120]
[354828758,1740725440246,-500.0,0.00054794,120]
[354828759,1740725440256,-500.0,0.00054794,120]
[354828760,1740725440267,-500.0,0.00054794,120]
[354828761,1740725440277,-500.0,0.00054794,120]
[354828762,1740725440287,-508.53167102,0.00054794,120]
[354828763,1740725440297,-447.71353057,0.00054794,120]
[354828764,1740725440307,-500.0,0.00054794,120]
[354828765,1740725440316,-508.04907697,0.00054794,120]
[354828766,1740725440326,-500.0,0.00054794,120]
[354828767,1740725440335,-500.0,0.00054794,120]
[354828768,1740725440345,-500.0,0.00054794,120]
[354828769,1740725440354,-1893.74,0.00054794,120]
[354828770,1740725440364,-588.55304267,0.00054794,120]
[354828771,1740725440373,-504.17866253,0.00054794,120]
[354828772,1740725440383,-500.0,0.00054794,120]
[354828773,1740725440392,-500.0,0.00054794,120]
[354828774,1740725440402,-503.39136805,0.00054794,120]
[354828776,1740725440412,-935.44,0.00054794,120]
[354828778,1740725440422,-500.0,0.00054794,120]
[354828780,1740725440432,-500.0,0.00054794,120]
[354828782,1740725440441,-500.0,0.00054794,120]
[354828783,1740725440450,-500.0,0.00054794,120]
[354828784,1740725440463,-500.0,0.00054794,120]
[354828785,1740725440472,-945.83,0.00054794,120]
[354828786,1740725440482,-513.52476774,0.00054794,120]
[354828788,1740725440497,-1425.73,0.00054794,120]
[354828789,1740725440506,-500.0,0.00054794,120]
[354828790,1740725440516,-151.0,0.00054794,120]
[354828791,1740725440526,-500.0,0.00054794,120]
[354828792,1740725440536,-500.0,0.00054794,120]
[354828793,1740725440546,-500.0,0.00054794,120]
[354828794,1740725440555,-790.7,0.00054794,120]
[354828795,1740725440566,-500.0,0.00054794,120]
[354828796,1740725440576,-500.0,0.00054794,120]
[354828798,1740725440586,-500.0,0.00054794,120]
[354828799,1740725440596,-500.0,0.00054794,120]
[354828800,1740725440605,-500.0,0.00054794,120]
[354828801,1740725440615,-500.0,0.00054794,120]
[354828802,1740725440625,-783.86,0.00054794,120]
[354828803,1740725440635,-500.0,0.00054794,120]
[354828804,1740725440644,-500.0,0.00054794,120]
[354828805,1740725440654,-775.93,0.00054794,120]
[354828806,1740725440665,-256.46437848,0.00054794,30]
[354828807,1740725440675,-500.0,0.00054794,30]
[354828808,1740725440685,-500.0,0.00054794,30]
[354828809,1740725440696,-500.0,0.00054794,120]
[354828810,1740725440705,-500.0,0.00054794,120]
[354828811,1740725440716,-500.0,0.00054794,120]
[354828812,1740725440727,-500.0,0.00054794,120]
[354828813,1740725440738,-151.0,0.00054794,120]
[354828814,1740725440748,-500.0,0.00054794,120]
[354828815,1740725440758,-151.0,0.00054794,120]
[354828816,1740725440768,-500.0,0.00054794,120]
[354828817,1740725440778,-500.0,0.00054794,120]
[354828818,1740725440788,-501.93753664,0.00054794,120]
[354828819,1740725440798,-463.03487807,0.00054794,120]
[354828820,1740725440808,-500.0,0.00054794,120]
[354828821,1740725440817,-500.0,0.00054794,120]
[354828822,1740725440827,-500.0,0.00054794,120]
[354828823,1740725440837,-500.0,0.00054794,120]
[354828824,1740725440846,-615.88,0.00054794,120]
[354828825,1740725440856,-500.0,0.00054794,120]
[354828826,1740725440865,-500.0,0.00054794,120]
[354828827,1740725440875,-500.0,0.00054794,120]
[354828828,1740725440885,-500.0,0.00054794,120]
[354828829,1740725440895,-500.0,0.00054794,120]
[354828830,1740725440904,-309.61147831,0.00054794,120]
[354828831,1740725440914,-500.0,0.00054794,120]
[354828832,1740725440924,-500.0,0.00054794,120]
[354828833,1740725440934,-500.0,0.00054794,120]
[354828834,1740725440944,-500.0,0.00054794,120]
[354828835,1740725440955,-500.0,0.00054794,120]
[354828836,1740725440966,-500.0,0.00054794,120]
[354828837,1740725440975,-500.0,0.00054794,120]
[354828838,1740725440985,-890.09,0.00054794,120]
[354828839,1740725440996,-771.67,0.00054794,120]
[354828840,1740725441006,-500.0,0.00054794,120]
[354828841,1740725441015,-1000.0,0.00054794,120]
[354828842,1740725441025,-500.0,0.00054794,120]
[354828843,1740725441034,-500.9360455,0.00054794,120]
[354828844,1740725441044,-500.0,0.00054794,120]
[354828845,1740725441054,-506.26,0.00054794,120]
[354828846,1740725441064,-500.0,0.00054794,120]
[354828847,1740725441074,-500.0,0.00054794,120]
[354828848,1740725441084,-507.98947781,0.00054794,120]
[354828849,1740725441094,-500.0,0.00054794,120]
[354828850,1740725441104,-500.0,0.00054794,120]
[354828851,1740725441113,-500.0,0.00054794,120]
[354828852,1740725441123,-500.0,0.00054794,120]
[354828853,1740725441133,-500.0,0.00054794,120]
[354828854,1740725441142,-500.0,0.00054794,120]
[354828855,1740725441152,-500.0,0.00054794,30]
[354828856,1740725441162,-500.0,0.00054794,30]
[354828857,1740725441172,-500.0,0.00054794,30]
[354828858,1740725441182,-500.0,0.00054794,120]
[354828859,1740725441193,-500.0,0.00054794,30]
[354828860,1740725441202,-500.0,0.00054794,120]
[354828861,1740725441212,-500.0,0.00054794,30]
[354828862,1740725441222,-191.945348,0.00054794,30]
[354828863,1740725441232,-500.0,0.00054794,120]
[354828864,1740725441246,-509.26847816,0.00054794,120]
[354828865,1740725441256,-500.0,0.00054794,2]
[354828866,1740725441266,-500.0,0.00054794,120]
[354828867,1740725441275,-500.0,0.00054794,120]
[354828868,1740725441285,-500.52759193,0.00054794,120]
[354828869,1740725441295,-500.0,0.00054794,120]
[354828870,1740725441304,-500.0,0.00054794,120]
[354828871,1740725441315,-300.0,0.00054794,120]
[354828872,1740725441324,-500.0,0.00054794,120]
[354828873,1740725441335,-500.0,0.00054794,120]
[354828874,1740725441345,-151.0,0.00054794,120]
[354828875,1740725441355,-151.0,0.00054794,120]
[354828876,1740725441365,-500.0,0.00054794,120]
[354828877,1740725441374,-151.0,0.00054794,120]
[354828878,1740725441384,-264.5681138,0.00054794,120]
[354828879,1740725441394,-500.0,0.00054794,120]
[354828880,1740725441403,-500.0,0.00054794,120]
[354828881,1740725441413,-500.0,0.00054794,120]
[354828882,1740725441422,-151.0,0.00054794,120]
[354828883,1740725441431,-500.0,0.00054794,120]
[354828884,1740725441440,-500.0,0.00054794,120]
[354828885,1740725441450,-500.0,0.00054794,120]
[354828886,1740725441459,-500.0,0.00054794,120]
[354828887,1740725441469,-500.0,0.00054794,120]
[354828888,1740725441481,-500.0,0.00054794,120]
[354828889,1740725441492,-500.0,0.00054794,120]
[354828890,1740725441502,-500.0,0.00054794,120]
[354828891,1740725441511,-500.0,0.00054794,120]
[354828892,1740725441521,-500.0,0.00054794,120]
[354828893,1740725441531,-500.0,0.00054794,120]
[354828894,1740725441540,-500.0,0.00054794,120]
[354828895,1740725441550,-500.0,0.00054794,120]
[354828896,1740725441559,-355.88290634,0.00054794,120]
[354828897,1740725441569,-538.18,0.00054794,120]
[354828898,1740725441579,-500.0,0.00054794,120]
[354828899,1740725441588,-1242.82,0.00054794,15]
[354828900,1740725441598,-500.0,0.00054794,120]
[354828901,1740725441608,-500.0,0.00054794,120]
[354828902,1740725441618,-500.0,0.00054794,120]
[354828903,1740725441628,-501.51128909,0.00054794,120]
[354828904,1740725441638,-500.0,0.00054794,120]
[354828905,1740725441647,-500.0,0.00054794,120]
[354828906,1740725441659,-500.0,0.00054794,120]
[354828907,1740725441669,-552.08940437,0.00054794,120]
[354828908,1740725441679,-1000.0,0.00054794,120]
[354828909,1740725441688,-500.0,0.00054794,120]
[354828910,1740725441699,-500.0,0.00054794,120]
[354828911,1740725441708,-500.0,0.00054794,120]
[354828912,1740725441718,-500.0,0.00054794,120]
[354828913,1740725441728,-500.0,0.00054794,120]
[354828914,1740725441738,-500.0,0.00054794,120]
[354828915,1740725441748,-500.0,0.00054794,120]
[354828916,1740725441757,-517.26,0.00054794,120]
[354828917,1740725441767,-534.3790959,0.00054794,120]
[354828918,1740725441778,-500.0,0.00054794,120]
[354828919,1740725441789,-500.0,0.00054794,120]
[354828920,1740725441799,-500.0,0.00054794,120]
[354828921,1740725441808,-151.0,0.00054794,120]
[354828922,1740725441817,-500.0,0.00054794,120]
[354828923,1740725441827,-151.0,0.00054794,120]
[354828924,1740725441981,-500.0,0.00054794,120]
[354828925,1740725441993,-500.0,0.00054794,120]
[354828926,1740725442003,-500.0,0.00054794,120]
[354828927,1740725442012,-151.0,0.00054794,120]
[354828928,1740725442022,-151.0,0.00054794,120]
[354828929,1740725442032,-500.0,0.00054794,120]
[354828930,1740725442041,-500.0,0.00054794,120]
[354828931,1740725442051,-488.56,0.00054794,120]
[354828932,1740725442060,-500.0,0.00054794,120]
[354828933,1740725442070,-188.589894,0.00054794,120]
[354828934,1740725442079,-500.0,0.00054794,120]
[354828935,1740725442088,-151.0,0.00054794,120]
[354828936,1740725442098,-151.0,0.00054794,120]
[354828937,1740725442107,-500.0,0.00054794,120]
[354828938,1740725442118,-500.0,0.00054794,120]
[354828939,1740725442127,-275.336824,0.00054794,120]
[354828940,1740725442137,-666.03,0.00054794,120]
[354828941,1740725442147,-500.0,0.00054794,120]
[354828942,1740725442157,-500.0,0.00054794,120]
[354828943,1740725442166,-500.0,0.00054794,120]
[354828944,1740725442176,-501.9700482,0.00054794,120]
[354828945,1740725442185,-690.63,0.00054794,120]
[354828946,1740725442194,-502.6046389,0.00054794,120]
[354828947,1740725442204,-500.0,0.00054794,120]
[354828948,1740725442213,-500.0,0.00054794,120]
[354828949,1740725442223,-500.0,0.00054794,30]
[354828950,1740725442232,-500.0,0.00054794,120]
[354828951,1740725442243,-500.0,0.00054794,120]
[354828952,1740725442253,-500.0,0.00054794,120]
[354828953,1740725442263,-500.0,0.00054794,120]
[354828954,1740725442272,-500.0,0.00054794,120]
[354828955,1740725442282,-500.0,0.00054794,120]
[354828956,1740725442291,-500.0,0.00054794,120]
[354828957,1740725442300,-500.0,0.00054794,120]
[354828958,1740725442309,-500.0,0.00054794,120]
[354828959,1740725442319,-510.27539894,0.00054794,120]
[354828960,1740725442329,-500.0,0.00054794,120]
[354828961,1740725442338,-350.0,0.00054794,30]
[354828962,1740725442348,-350.0,0.00054794,30]
[354828963,1740725442358,-500.0,0.00054794,120]
[354828964,1740725442367,-500.0,0.00054794,120]
[354828965,1740725442376,-500.0,0.00054794,120]
[354828966,1740725442386,-500.0,0.00054794,120]
[354828967,1740725442395,-500.0,0.00054794,120]
[354828968,1740725442405,-500.0,0.00054794,120]
[354828969,1740725442415,-500.0,0.00054794,120]
[354828970,1740725442424,-500.0,0.00054794,120]
[354828971,1740725442433,-500.83126035,0.00054794,120]
[354828972,1740725442443,-500.0,0.00054794,120]
[354828973,1740725442452,-225.9149841,0.00054794,120]
[354828974,1740725442462,-500.0,0.00054794,120]
[354828975,1740725442471,-500.0,0.00054794,120]
[354828976,1740725442483,-500.0,0.00054794,120]
[354828977,1740725442497,-500.0,0.00054794,120]
[354828978,1740725442507,-500.0,0.00054794,120]
[354828979,1740725442517,-500.0,0.00054794,120]
[354828980,1740725442527,-500.0,0.00054794,120]
[354828981,1740725442537,-665.17,0.00054794,120]
[354828982,1740725442547,-500.0,0.00054794,120]
[354828983,1740725442557,-503.88799154,0.00054794,120]
[354828984,1740725442568,-500.0,0.00054794,120]
[354828985,1740725442578,-500.0,0.00054794,120]
[354828986,1740725442587,-500.0,0.00054794,120]
[354828987,1740725442597,-500.0,0.00054794,120]
[354828988,1740725442607,-500.0,0.00054794,120]
[354828989,1740725442616,-504.8526606,0.00054794,120]
[354828990,1740725442627,-1000.0,0.00054794,20]
[354828991,1740725442637,-502.29000855,0.00054794,120]
[354828992,1740725442646,-500.8048254,0.00054794,120]
[354828993,1740725442656,-500.0,0.00054794,120]
[354828994,1740725442666,-500.0,0.00054794,120]
[354828995,1740725442677,-500.0,0.00054794,120]
[354828996,1740725442688,-509.69449276,0.00054794,120]
[354828997,1740725442699,-500.0,0.00054794,120]
[354828998,1740725442708,-500.0,0.00054794,120]
[354828999,1740725442718,-500.0,0.00054794,120]
[354829000,1740725442728,-503.9227218,0.00054794,120]
[354829001,1740725442740,-500.0,0.00054794,120]
[354829002,1740725442750,-583.01643664,0.00054794,120]
[354829003,1740725442760,-500.0,0.00054794,120]
[354829004,1740725442769,-500.0,0.00054794,120]
[354829005,1740725442779,-500.0,0.00054794,120]
[354829006,1740725442788,-1507.519728,0.00054794,120]
[354829007,1740725442797,-500.0,0.00054794,120]
[354829008,1740725442807,-1507.519728,0.00054794,120]
[354829009,1740725442816,-500.0,0.00054794,120]
[354829010,1740725442826,-500.0,0.00054794,120]
[354829011,1740725442835,-500.0,0.00054794,120]
[354829012,1740725442844,-1507.519728,0.00054794,120]
[354829013,1740725442853,-500.0,0.00054794,120]
[354829014,1740725442862,-1507.519728,0.00054794,120]
[354829015,1740725442871,-2000.0,0.00054794,2]
[354829016,1740725442881,-500.0,0.00054794,120]
[354829017,1740725442890,-500.0,0.00054794,120]
[354829018,1740725442899,-508.22984523,0.00054794,120]
[354829019,1740725442908,-500.0,0.00054794,120]
[354829020,1740725442918,-500.9154904,0.00054794,120]
[354829021,1740725442927,-500.0,0.00054794,120]
[354829022,1740725442936,-510.58615269,0.00054794,120]
[354829023,1740725442946,-500.0,0.00054794,120]
[354829024,1740725442955,-500.0,0.00054794,120]
[354829025,1740725442964,-500.0,0.00054794,120]
[354829026,1740725442974,-500.0,0.00054794,120]
[354829027,1740725442984,-500.0,0.00054794,120]
[354829028,1740725442995,-192.320546,0.00054794,110]
[354829031,1740725443004,-192.320546,0.00054794,110]
[354829032,1740725443014,-534.64,0.00054794,120]
[354829034,1740725443023,-500.0,0.00054794,2]
[354829036,1740725443032,-500.0,0.00054794,120]
[354829038,1740725443041,-500.0,0.00054794,120]
[354829040,1740725443050,-512.8,0.00054794,120]
[354829042,1740725443060,-500.79905131,0.00054794,120]
[354829044,1740725443069,-192.320546,0.00054794,110]
[354829046,1740725443078,-192.320546,0.00054794,110]
[354829047,1740725443087,-500.0,0.00054794,120]
[354829048,1740725443096,-500.0,0.00054794,120]
[354829049,1740725443106,-500.0,0.00054794,120]
[354829050,1740725443115,-500.0,0.00054794,120]
[354829051,1740725443124,-239.16623068,0.00054794,120]
[354829052,1740725443133,-500.0,0.00054794,120]
[354829053,1740725443143,-386.85460156,0.00054794,120]
[354829054,1740725443152,-151.0,0.00054794,120]
[354829055,1740725443161,-643.60683448,0.00054794,120]
[354829056,1740725443171,-500.0,0.00054794,120]
[354829057,1740725443180,-500.0,0.00054794,120]
[354829058,1740725443190,-151.0,0.00054794,120]
[354829059,1740725443199,-1141.83,0.00054794,120]